[Event "Early-Titled-Tuesday-Blitz-March-05-2024"]
[Site "Chess.com"]
[Date "2024.03.05"]
[Round "3"]
[White "VladimirKramnik"]
[Black "Leonid_Starozhilov"]
[Result "1-0"]
[WhiteElo "2966"]
[BlackElo "2707"]
[TimeControl "180+1"]
[EndTime "8:32:58 PST"]
[Termination "VladimirKramnik won by resignation"]

1. c4 {[%clk 0:03:00.9]} 1... Nf6 {[%clk 0:03:00.2]} 2. Nc3 {[%clk 0:03:00.8]}
2... g6 {[%clk 0:03:00.9]} 3. g3 {[%clk 0:02:59.7]} 3... d6 {[%clk 0:03:01.8]}
4. Bg2 {[%clk 0:02:59.3]} 4... Bg7 {[%clk 0:03:02.4]} 5. e3 {[%clk 0:02:55.6]}
5... O-O {[%clk 0:03:01.5]} 6. Nge2 {[%clk 0:02:56.1]} 6... c5 {[%clk
0:02:59.2]} 7. O-O {[%clk 0:02:55.1]} 7... Nc6 {[%clk 0:02:59.8]} 8. d4 {[%clk
0:02:53.9]} 8... a6 {[%clk 0:02:57.3]} 9. b3 {[%clk 0:02:47.8]} 9... Rb8 {[%clk
0:02:43.8]} 10. dxc5 {[%clk 0:02:41.1]} 10... dxc5 {[%clk 0:02:43.9]} 11. Qxd8
{[%clk 0:02:37.6]} 11... Nxd8 {[%clk 0:02:26.4]} 12. Bb2 {[%clk 0:02:30.5]}
12... b5 {[%clk 0:02:10.7]} 13. cxb5 {[%clk 0:02:23.7]} 13... axb5 {[%clk
0:02:11.6]} 14. Rfd1 {[%clk 0:02:17.7]} 14... Ne6 {[%clk 0:02:03.2]} 15. Rd2
{[%clk 0:02:11.6]} 15... Bb7 {[%clk 0:01:53.7]} 16. Rad1 {[%clk 0:02:09.1]}
16... Bxg2 {[%clk 0:01:50.3]} 17. Kxg2 {[%clk 0:02:08.2]} 17... Rfc8 {[%clk
0:01:50.9]} 18. Nf4 {[%clk 0:01:58.2]} 18... Nxf4+ {[%clk 0:01:47.5]} 19. gxf4
{[%clk 0:01:58.1]} 19... c4 {[%clk 0:01:40.3]} 20. bxc4 {[%clk 0:01:55.3]} 20...
bxc4 {[%clk 0:01:38.6]} 21. Ba1 {[%clk 0:01:53.1]} 21... e6 {[%clk 0:01:38.5]}
22. a4 {[%clk 0:01:45.9]} 22... h5 {[%clk 0:01:15.9]} 23. Rc2 {[%clk 0:01:43.9]}
23... Rb3 {[%clk 0:01:04.1]} 24. Nb5 {[%clk 0:01:24.2]} 24... Nd5 {[%clk
0:00:48.8]} 25. Bxg7 {[%clk 0:01:20.2]} 25... Kxg7 {[%clk 0:00:49.7]} 26. Kf3
{[%clk 0:00:53.8]} 26... c3 {[%clk 0:00:45.9]} 27. Nd4 {[%clk 0:00:41.3]} 27...
Ra3 {[%clk 0:00:43.5]} 28. f5 {[%clk 0:00:34.8]} 28... gxf5 {[%clk 0:00:43.3]}
29. Nxf5+ {[%clk 0:00:33.6]} 29... exf5 {[%clk 0:00:31.7]} 30. Rxd5 {[%clk
0:00:33.1]} 30... Rxa4 {[%clk 0:00:32.6]} 31. Rxf5 {[%clk 0:00:33]} 31... Kg6
{[%clk 0:00:29.2]} 32. Rf4 {[%clk 0:00:27.1]} 32... Rac4 {[%clk 0:00:20.6]} 33.
h4 {[%clk 0:00:23.1]} 33... f5 {[%clk 0:00:17.9]} 34. Rd4 {[%clk 0:00:20.8]}
34... Kf6 {[%clk 0:00:16.2]} 35. Ke2 {[%clk 0:00:20.4]} 35... Rxd4 {[%clk
0:00:05]} 36. exd4 {[%clk 0:00:20]} 36... Rg8 {[%clk 0:00:03.3]} 37. Kd3 {[%clk
0:00:16.4]} 37... Rg4 {[%clk 0:00:03.4]} 38. Rxc3 {[%clk 0:00:15.4]} 38... Ke6
{[%clk 0:00:03.6]} 39. Rc6+ {[%clk 0:00:14.7]} 39... Ke7 {[%clk 0:00:04.1]} 40.
Kc4 {[%clk 0:00:09.8]} 40... Rxh4 {[%clk 0:00:03.8]} 41. Kd5 {[%clk 0:00:10.4]}
41... Rh1 {[%clk 0:00:03.8]} 42. Rc7+ {[%clk 0:00:10.3]} 42... Kf6 {[%clk
0:00:02.9]} 43. f4 {[%clk 0:00:09.9]} 43... Rf1 {[%clk 0:00:02.6]} 44. Rc6+
{[%clk 0:00:09.6]} 44... Kf7 {[%clk 0:00:03]} 45. Ke5 {[%clk 0:00:09.8]} 45...
h4 {[%clk 0:00:03.4]} 46. Rh6 {[%clk 0:00:09.3]} 46... Re1+ {[%clk 0:00:02.6]}
47. Kxf5 {[%clk 0:00:09.1]} 47... Rd1 {[%clk 0:00:02.9]} 48. Ke4 {[%clk
0:00:08.3]} 48... Re1+ {[%clk 0:00:03.4]} 49. Kd3 {[%clk 0:00:08]} 49... Rd1+
{[%clk 0:00:03.9]} 50. Ke3 {[%clk 0:00:08.1]} 50... Re1+ {[%clk 0:00:04.2]} 51.
Kf3 {[%clk 0:00:07.6]} 51... Rd1 {[%clk 0:00:04.3]} 52. Ke4 {[%clk 0:00:07.7]}
52... Re1+ {[%clk 0:00:04.7]} 53. Kd5 {[%clk 0:00:07]} 53... Rf1 {[%clk
0:00:04.8]} 54. Rxh4 {[%clk 0:00:06.4]} 54... Kf6 {[%clk 0:00:03.6]} 55. Kd6
{[%clk 0:00:05.7]} 55... Kf5 {[%clk 0:00:03.9]} 56. d5 {[%clk 0:00:06.1]} 56...
Ra1 {[%clk 0:00:04.6]} 57. Kd7 {[%clk 0:00:04.5]} 57... Ra7+ {[%clk 0:00:05.1]}
58. Kc6 {[%clk 0:00:04.6]} 58... Ra6+ {[%clk 0:00:05.4]} 59. Kb5 {[%clk
0:00:04.9]} 59... Ra1 {[%clk 0:00:05.1]} 60. d6 {[%clk 0:00:04.6]} 60... Ke6
{[%clk 0:00:04.2]} 61. Rh6+ {[%clk 0:00:03.8]} 61... Kd7 {[%clk 0:00:04.6]} 62.
Kc5 {[%clk 0:00:04.4]} 62... Ra5+ {[%clk 0:00:04]} 63. Kd4 {[%clk 0:00:03.9]}
63... Ra4+ {[%clk 0:00:03.3]} 64. Ke5 {[%clk 0:00:04.2]} 64... Ra5+ {[%clk
0:00:04.1]} 65. Kf6 {[%clk 0:00:04.2]} 65... Kxd6 {[%clk 0:00:04.6]} 66. f5
{[%clk 0:00:04.9]} 66... Kd7 {[%clk 0:00:04]} 67. Rh7+ {[%clk 0:00:05.3]} 67...
Ke8 {[%clk 0:00:04.4]} 68. Rh8+ {[%clk 0:00:05.8]} 68... Kd7 {[%clk 0:00:04.9]}
69. Kg6 {[%clk 0:00:06]} 69... Ra1 {[%clk 0:00:05.2]} 70. f6 {[%clk 0:00:05.5]}
70... Rg1+ {[%clk 0:00:04.3]} 71. Kf7 {[%clk 0:00:05.7]} 71... Rg2 {[%clk
0:00:04.6]} 72. Ra8 {[%clk 0:00:05.7]} 72... Rg1 {[%clk 0:00:04.4]} 73. Ra2
{[%clk 0:00:05.7]} 73... Rd1 {[%clk 0:00:03.1]} 74. Rg2 {[%clk 0:00:05.8]} 1-0

[Event "Early-Titled-Tuesday-Blitz-March-05-2024"]
[Site "Chess.com"]
[Date "2024.03.05"]
[Round "3"]
[White "Austen48"]
[Black "Practical-Play"]
[Result "1-0"]
[WhiteElo "2284"]
[BlackElo "2519"]
[TimeControl "180+1"]
[EndTime "8:33:10 PST"]
[Termination "Austen48 won by checkmate"]

1. d4 {[%clk 0:03:00.9]} 1... Nf6 {[%clk 0:02:54.9]} 2. c4 {[%clk 0:02:59.6]}
2... a6 {[%clk 0:02:53.3]} 3. Nc3 {[%clk 0:02:55.8]} 3... c6 {[%clk 0:02:45.6]}
4. e4 {[%clk 0:02:48.9]} 4... b5 {[%clk 0:02:39.7]} 5. e5 {[%clk 0:02:48.1]}
5... Ng8 {[%clk 0:02:38.2]} 6. Nf3 {[%clk 0:02:43.9]} 6... d6 {[%clk 0:02:35.5]}
7. h3 {[%clk 0:02:40.1]} 7... g6 {[%clk 0:02:27.3]} 8. Bd3 {[%clk 0:02:37.7]}
8... Bg7 {[%clk 0:02:25.7]} 9. O-O {[%clk 0:02:32.9]} 9... dxe5 {[%clk
0:02:23.8]} 10. dxe5 {[%clk 0:02:31.2]} 10... Qc7 {[%clk 0:02:11.4]} 11. Qe2
{[%clk 0:02:27.3]} 11... h5 {[%clk 0:02:00.3]} 12. Bf4 {[%clk 0:02:21.4]} 12...
Nh6 {[%clk 0:01:50.7]} 13. Rac1 {[%clk 0:02:08.3]} 13... b4 {[%clk 0:01:29.6]}
14. Ne4 {[%clk 0:02:01.7]} 14... Nd7 {[%clk 0:01:11.5]} 15. Nd6+ {[%clk
0:01:55.9]} 15... Kf8 {[%clk 0:01:11.6]} 16. e6 {[%clk 0:01:40.5]} 16... exd6
{[%clk 0:00:57.1]} 17. exd7 {[%clk 0:01:35.4]} 17... Bxd7 {[%clk 0:00:52.5]} 18.
Ng5 {[%clk 0:01:30]} 18... Re8 {[%clk 0:00:33]} 19. Qf3 {[%clk 0:01:29.3]} 19...
c5 {[%clk 0:00:19]} 20. Bxg6 {[%clk 0:01:25.6]} 20... Bc6 {[%clk 0:00:15.3]} 21.
Be4 {[%clk 0:01:22.5]} 21... Bxe4 {[%clk 0:00:10]} 22. Nxe4 {[%clk 0:01:21.4]}
22... Nf5 {[%clk 0:00:10.6]} 23. Rcd1 {[%clk 0:01:17.6]} 23... Nd4 {[%clk
0:00:09.5]} 24. Rxd4 {[%clk 0:01:15.6]} 24... Qd7 {[%clk 0:00:03.9]} 25. Rxd6
{[%clk 0:01:13.3]} 25... Qf5 {[%clk 0:00:03.9]} 26. Ng3 {[%clk 0:01:01.5]} 26...
Qc2 {[%clk 0:00:04.4]} 27. Rd7 {[%clk 0:00:50.2]} 27... Qg6 {[%clk 0:00:04.2]}
28. Nf5 {[%clk 0:00:42.1]} 28... Bxb2 {[%clk 0:00:02.2]} 29. Bd6+ {[%clk
0:00:36.6]} 29... Kg8 {[%clk 0:00:02.6]} 30. Ne7+ {[%clk 0:00:31.6]} 30... Rxe7
{[%clk 0:00:03]} 31. Rxe7 {[%clk 0:00:30.3]} 31... Kh7 {[%clk 0:00:03.4]} 32.
Rxf7+ {[%clk 0:00:28.2]} 32... Kg8 {[%clk 0:00:02.6]} 33. Rf8+ {[%clk 0:00:26]}
33... Kh7 {[%clk 0:00:03.1]} 34. Qf7+ {[%clk 0:00:23.3]} 34... Qxf7 {[%clk
0:00:02.4]} 35. Rxf7+ {[%clk 0:00:23.9]} 35... Kg6 {[%clk 0:00:03.2]} 36. Ra7
{[%clk 0:00:22]} 36... Bd4 {[%clk 0:00:03.9]} 37. Rxa6 {[%clk 0:00:21.5]} 37...
Kf5 {[%clk 0:00:04.6]} 38. g3 {[%clk 0:00:20.6]} 38... Ke4 {[%clk 0:00:04.6]}
39. Kg2 {[%clk 0:00:20.5]} 39... Kd3 {[%clk 0:00:04.7]} 40. Bf4 {[%clk
0:00:19.5]} 40... Kxc4 {[%clk 0:00:04.5]} 41. Be3 {[%clk 0:00:15.9]} 41... Kb5
{[%clk 0:00:03.9]} 42. Bxd4 {[%clk 0:00:15.2]} 42... cxd4 {[%clk 0:00:03.5]} 43.
Rd6 {[%clk 0:00:15.2]} 43... Ra8 {[%clk 0:00:02.6]} 44. Rxd4 {[%clk 0:00:15.1]}
44... Rxa2 {[%clk 0:00:03]} 45. Rb1 {[%clk 0:00:15.3]} 45... Kc5 {[%clk
0:00:03.1]} 46. Rdxb4 {[%clk 0:00:14.5]} 46... Kd6 {[%clk 0:00:02.9]} 47. Rb6+
{[%clk 0:00:14.1]} 47... Kc7 {[%clk 0:00:03.4]} 48. R1b5 {[%clk 0:00:13.9]}
48... h4 {[%clk 0:00:02.9]} 49. g4 {[%clk 0:00:13.9]} 49... Rc2 {[%clk
0:00:02.5]} 50. Rb7+ {[%clk 0:00:14.2]} 50... Kc6 {[%clk 0:00:02.7]} 51. Rb8
{[%clk 0:00:13.6]} 51... Kd7 {[%clk 0:00:02.7]} 52. Rd5+ {[%clk 0:00:13.3]}
52... Kc6 {[%clk 0:00:03.2]} 53. Rd3 {[%clk 0:00:13.1]} 53... Kc7 {[%clk
0:00:03.2]} 54. Rbb3 {[%clk 0:00:11.6]} 54... Ra2 {[%clk 0:00:03.6]} 55. Rbc3+
{[%clk 0:00:10.2]} 55... Kb6 {[%clk 0:00:04.1]} 56. Rd1 {[%clk 0:00:09.5]} 56...
Kb5 {[%clk 0:00:02.7]} 57. Rb1+ {[%clk 0:00:09.3]} 57... Ka6 {[%clk 0:00:03.1]}
58. Rc8 {[%clk 0:00:08.5]} 58... Ka7 {[%clk 0:00:03.5]} 59. g5 {[%clk
0:00:07.6]} 59... Ra5 {[%clk 0:00:03]} 60. f4 {[%clk 0:00:07.7]} 60... Ra2+
{[%clk 0:00:02.8]} 61. Kf3 {[%clk 0:00:07.7]} 61... Rh2 {[%clk 0:00:02.3]} 62.
Kg4 {[%clk 0:00:08]} 62... Rg2+ {[%clk 0:00:02.1]} 63. Kxh4 {[%clk 0:00:06.6]}
63... Rf2 {[%clk 0:00:03]} 64. Kg4 {[%clk 0:00:06.6]} 64... Ra2 {[%clk
0:00:03.9]} 65. g6 {[%clk 0:00:06.2]} 65... Rg2+ {[%clk 0:00:04.8]} 66. Kf5
{[%clk 0:00:06.4]} 66... Ra2 {[%clk 0:00:05.1]} 67. Rc7+ {[%clk 0:00:06.6]}
67... Ka6 {[%clk 0:00:05]} 68. Rc6+ {[%clk 0:00:07]} 68... Ka7 {[%clk
0:00:05.9]} 69. g7 {[%clk 0:00:06.8]} 69... Ra5+ {[%clk 0:00:06.1]} 70. Kf6
{[%clk 0:00:06.8]} 70... Ra2 {[%clk 0:00:05.5]} 71. Rc7+ {[%clk 0:00:06.8]}
71... Ka6 {[%clk 0:00:05.1]} 72. Rc8 {[%clk 0:00:07.2]} 72... Ka7 {[%clk
0:00:04.7]} 73. Rcb8 {[%clk 0:00:06.7]} 73... Ra6+ {[%clk 0:00:05.6]} 74. Kf7
{[%clk 0:00:05.6]} 74... Ra4 {[%clk 0:00:04.8]} 75. R1b7+ {[%clk 0:00:03.9]}
75... Ka6 {[%clk 0:00:04.9]} 76. Ra8+ {[%clk 0:00:04.6]} 76... Kxb7 {[%clk
0:00:05]} 77. Rxa4 {[%clk 0:00:05.2]} 77... Kc6 {[%clk 0:00:05.8]} 78. f5 {[%clk
0:00:05.6]} 78... Kb5 {[%clk 0:00:06.7]} 79. f6 {[%clk 0:00:06.1]} 79... Kc5
{[%clk 0:00:06.8]} 80. g8=Q {[%clk 0:00:05.9]} 80... Kd5 {[%clk 0:00:07.7]} 81.
Qg5+ {[%clk 0:00:05.8]} 81... Kc6 {[%clk 0:00:07.8]} 82. Qe5 {[%clk 0:00:05.7]}
82... Kb6 {[%clk 0:00:07.7]} 83. Qa5+ {[%clk 0:00:04.4]} 83... Kc6 {[%clk
0:00:08.1]} 84. Rc4+ {[%clk 0:00:04.6]} 84... Kd6 {[%clk 0:00:08.5]} 85. Qc5+
{[%clk 0:00:05]} 85... Kd7 {[%clk 0:00:08.8]} 86. Rd4# {[%clk 0:00:04.8]} 1-0

[Event "Early-Titled-Tuesday-Blitz-March-05-2024"]
[Site "Chess.com"]
[Date "2024.03.05"]
[Round "3"]
[White "ilya2700"]
[Black "HelvertHernandez"]
[Result "0-1"]
[WhiteElo "2335"]
[BlackElo "2029"]
[TimeControl "180+1"]
[EndTime "8:33:10 PST"]
[Termination "HelvertHernandez won by resignation"]

1. d4 {[%clk 0:03:00]} 1... Nf6 {[%clk 0:02:58.7]} 2. c4 {[%clk 0:02:59.4]} 2...
g6 {[%clk 0:02:58.7]} 3. Nc3 {[%clk 0:02:59.7]} 3... Bg7 {[%clk 0:02:58.9]} 4.
e4 {[%clk 0:03:00.2]} 4... d6 {[%clk 0:02:59]} 5. f4 {[%clk 0:03:00.7]} 5... O-O
{[%clk 0:02:58.4]} 6. Nf3 {[%clk 0:03:00.9]} 6... e5 {[%clk 0:02:57.6]} 7. fxe5
{[%clk 0:02:59.5]} 7... dxe5 {[%clk 0:02:57.7]} 8. d5 {[%clk 0:02:59.9]} 8...
Bg4 {[%clk 0:02:52.2]} 9. Be2 {[%clk 0:02:56.8]} 9... Bxf3 {[%clk 0:02:47.3]}
10. Bxf3 {[%clk 0:02:57.7]} 10... Na6 {[%clk 0:02:47.2]} 11. O-O {[%clk
0:02:57.6]} 11... Nd7 {[%clk 0:02:39.7]} 12. Be3 {[%clk 0:02:57.2]} 12... f5
{[%clk 0:02:36.2]} 13. Rb1 {[%clk 0:02:18.5]} 13... Nac5 {[%clk 0:02:32.9]} 14.
b4 {[%clk 0:02:13.6]} 14... Nxe4 {[%clk 0:02:32.5]} 15. Nxe4 {[%clk 0:02:14.5]}
15... fxe4 {[%clk 0:02:32.6]} 16. Bxe4 {[%clk 0:02:15.4]} 16... Qh4 {[%clk
0:02:31.4]} 17. Qd3 {[%clk 0:02:13.9]} 17... Nf6 {[%clk 0:02:25.4]} 18. Bf3
{[%clk 0:01:47.3]} 18... e4 {[%clk 0:02:23.2]} 19. g3 {[%clk 0:01:47.8]} 19...
Qxh2+ {[%clk 0:01:56]} 20. Kxh2 {[%clk 0:01:37.4]} 20... exd3 {[%clk 0:01:56.1]}
21. Rbd1 {[%clk 0:01:35.7]} 21... Rae8 {[%clk 0:01:54.3]} 22. Bc5 {[%clk
0:01:30.3]} 22... Rf7 {[%clk 0:01:50.4]} 23. Rxd3 {[%clk 0:01:28.9]} 23... b6
{[%clk 0:01:41.5]} 24. Bd4 {[%clk 0:01:23.3]} 24... Ng4+ {[%clk 0:01:38.9]} 25.
Kg1 {[%clk 0:01:16.9]} 25... Bxd4+ {[%clk 0:01:35.9]} 26. Rxd4 {[%clk
0:01:17.8]} 26... Ne3 {[%clk 0:01:29.3]} 27. Rf2 {[%clk 0:01:17.4]} 27... Nf5
{[%clk 0:01:28.7]} 28. Rd1 {[%clk 0:01:07.8]} 28... Nxg3 {[%clk 0:01:26.5]} 29.
d6 {[%clk 0:01:06.3]} 29... Kg7 {[%clk 0:01:07.3]} 30. Bc6 {[%clk 0:00:44.8]}
30... Rd8 {[%clk 0:00:55.8]} 31. Rxf7+ {[%clk 0:00:23.3]} 31... Kxf7 {[%clk
0:00:55.2]} 32. Bd5+ {[%clk 0:00:23.8]} 32... Kf6 {[%clk 0:00:47.7]} 33. dxc7
{[%clk 0:00:23.7]} 33... Rc8 {[%clk 0:00:47.8]} 34. Kg2 {[%clk 0:00:21]} 34...
Nf5 {[%clk 0:00:46.8]} 35. Rh1 {[%clk 0:00:19]} 35... h5 {[%clk 0:00:44.2]} 36.
Re1 {[%clk 0:00:18.6]} 36... Rxc7 {[%clk 0:00:43.2]} 37. Re6+ {[%clk 0:00:19]}
37... Kg5 {[%clk 0:00:43.3]} 38. Re8 {[%clk 0:00:19.6]} 38... Re7 {[%clk
0:00:42]} 39. Ra8 {[%clk 0:00:17.1]} 39... Ne3+ {[%clk 0:00:41.5]} 40. Kf3
{[%clk 0:00:15.6]} 40... Nxd5 {[%clk 0:00:41.6]} 41. cxd5 {[%clk 0:00:16.5]}
41... h4 {[%clk 0:00:38.5]} 42. Rh8 {[%clk 0:00:15.8]} 42... Rf7+ {[%clk
0:00:37.2]} 43. Kg2 {[%clk 0:00:14.7]} 43... Rd7 {[%clk 0:00:36.9]} 44. Ra8
{[%clk 0:00:14]} 44... Rxd5 {[%clk 0:00:36.8]} 45. Rxa7 {[%clk 0:00:14.1]} 45...
Rd2+ {[%clk 0:00:36.8]} 46. Kh3 {[%clk 0:00:14.5]} 46... Rd3+ {[%clk 0:00:35.9]}
47. Kh2 {[%clk 0:00:14.9]} 47... Kg4 {[%clk 0:00:35.2]} 48. b5 {[%clk 0:00:12]}
48... Rd2+ {[%clk 0:00:34.8]} 49. Kg1 {[%clk 0:00:10.8]} 49... g5 {[%clk
0:00:35.1]} 50. Ra4+ {[%clk 0:00:10.6]} 50... Kf3 {[%clk 0:00:29.9]} 51. Ra3+
{[%clk 0:00:10.3]} 51... Kf4 {[%clk 0:00:29.8]} 52. Ra4+ {[%clk 0:00:10.2]}
52... Kf5 {[%clk 0:00:30.1]} 53. Ra6 {[%clk 0:00:09.7]} 53... g4 {[%clk
0:00:27.4]} 54. Rxb6 {[%clk 0:00:09.9]} 54... Rxa2 {[%clk 0:00:27.5]} 55. Rb8
{[%clk 0:00:10.3]} 55... h3 {[%clk 0:00:27.3]} 56. Rf8+ {[%clk 0:00:09.7]} 56...
Kg5 {[%clk 0:00:27.2]} 57. b6 {[%clk 0:00:07.4]} 57... Rb2 {[%clk 0:00:27.3]}
58. Rg8+ {[%clk 0:00:06.4]} 58... Kh4 {[%clk 0:00:27.2]} 59. Rc8 {[%clk
0:00:05.1]} 59... Rxb6 {[%clk 0:00:25.8]} 60. Rc3 {[%clk 0:00:05.2]} 60... Rf6
{[%clk 0:00:23.4]} 61. Kh2 {[%clk 0:00:04.8]} 61... Rf3 {[%clk 0:00:21.5]} 62.
Rc1 {[%clk 0:00:02.1]} 62... Rf2+ {[%clk 0:00:21.1]} 63. Kg1 {[%clk 0:00:02.3]}
63... Kg3 {[%clk 0:00:19.8]} 64. Rc3+ {[%clk 0:00:02.2]} 64... Rf3 {[%clk
0:00:20.2]} 65. Rc1 {[%clk 0:00:03.1]} 65... Re3 {[%clk 0:00:15.9]} 66. Kh1
{[%clk 0:00:03.2]} 66... Kf3 {[%clk 0:00:15.2]} 67. Rf1+ {[%clk 0:00:02.7]}
67... Ke4 {[%clk 0:00:15.3]} 68. Ra1 {[%clk 0:00:03.6]} 68... g3 {[%clk
0:00:14.9]} 69. Ra4+ {[%clk 0:00:04]} 69... Kf3 {[%clk 0:00:14.8]} 70. Ra1
{[%clk 0:00:04.9]} 70... Rd3 {[%clk 0:00:12.1]} 71. Rf1+ {[%clk 0:00:05.2]}
71... Ke3 {[%clk 0:00:12.4]} 72. Re1+ {[%clk 0:00:05.3]} 72... Kf2 {[%clk
0:00:12.5]} 73. Rf1+ {[%clk 0:00:04.4]} 73... Ke2 {[%clk 0:00:11.5]} 74. Ra1
{[%clk 0:00:04.2]} 74... Rd1+ {[%clk 0:00:11.6]} 75. Rxd1 {[%clk 0:00:02.5]}
75... Kxd1 {[%clk 0:00:12.3]} 76. Kg1 {[%clk 0:00:03.4]} 76... Ke2 {[%clk
0:00:12.6]} 77. Kh1 {[%clk 0:00:04.3]} 77... g2+ {[%clk 0:00:12.2]} 78. Kg1
{[%clk 0:00:05.2]} 78... Ke3 {[%clk 0:00:12.2]} 79. Kh2 {[%clk 0:00:05.3]} 79...
Kf2 {[%clk 0:00:12.6]} 0-1

[Event "Early-Titled-Tuesday-Blitz-March-05-2024"]
[Site "Chess.com"]
[Date "2024.03.05"]
[Round "3"]
[White "Bilan_Danila"]
[Black "AlexandraSamaganova"]
[Result "1-0"]
[WhiteElo "2542"]
[BlackElo "2305"]
[TimeControl "180+1"]
[EndTime "8:33:17 PST"]
[Termination "Bilan_Danila won by checkmate"]

1. d4 {[%clk 0:03:00.9]} 1... Nf6 {[%clk 0:02:59]} 2. Nf3 {[%clk 0:03:00.8]}
2... e6 {[%clk 0:02:58.2]} 3. g3 {[%clk 0:03:00.8]} 3... b6 {[%clk 0:02:56.7]}
4. Bg2 {[%clk 0:03:00.9]} 4... Bb7 {[%clk 0:02:57.1]} 5. O-O {[%clk 0:03:01.8]}
5... Be7 {[%clk 0:02:57]} 6. c4 {[%clk 0:03:02.5]} 6... O-O {[%clk 0:02:57.2]}
7. d5 {[%clk 0:03:03.2]} 7... d6 {[%clk 0:02:57]} 8. Nc3 {[%clk 0:02:55.1]} 8...
e5 {[%clk 0:02:57]} 9. e4 {[%clk 0:02:52.5]} 9... Nbd7 {[%clk 0:02:56.7]} 10.
Nh4 {[%clk 0:02:46.3]} 10... Ne8 {[%clk 0:02:52.1]} 11. Nf5 {[%clk 0:02:44.5]}
11... Bf6 {[%clk 0:02:47]} 12. Be3 {[%clk 0:02:24]} 12... Kh8 {[%clk 0:02:40.9]}
13. b4 {[%clk 0:02:21]} 13... g6 {[%clk 0:02:38.5]} 14. Nh6 {[%clk 0:02:19.3]}
14... Bg7 {[%clk 0:02:37.7]} 15. Bh3 {[%clk 0:02:05.2]} 15... Ndf6 {[%clk
0:02:09.9]} 16. Bg5 {[%clk 0:01:39]} 16... Bc8 {[%clk 0:02:09.3]} 17. Bg2 {[%clk
0:01:22.8]} 17... Qd7 {[%clk 0:01:59.6]} 18. c5 {[%clk 0:01:04.3]} 18... bxc5
{[%clk 0:01:41.8]} 19. bxc5 {[%clk 0:01:05.2]} 19... dxc5 {[%clk 0:01:35.9]} 20.
Na4 {[%clk 0:00:43.1]} 20... Qb5 {[%clk 0:01:06.6]} 21. Rc1 {[%clk 0:00:36.3]}
21... Qb4 {[%clk 0:00:54.4]} 22. Nxc5 {[%clk 0:00:28.9]} 22... Nd6 {[%clk
0:00:48.2]} 23. Re1 {[%clk 0:00:25.6]} 23... Ng8 {[%clk 0:00:41.5]} 24. Nxg8
{[%clk 0:00:21.6]} 24... Kxg8 {[%clk 0:00:42.4]} 25. Nd3 {[%clk 0:00:13.1]}
25... Qa5 {[%clk 0:00:41.7]} 26. Qd2 {[%clk 0:00:08.6]} 26... Qb6 {[%clk
0:00:38.6]} 27. Rc6 {[%clk 0:00:07.9]} 27... Qd4 {[%clk 0:00:36.3]} 28. Be3
{[%clk 0:00:07.6]} 28... Qa4 {[%clk 0:00:36.2]} 29. Nc5 {[%clk 0:00:06.5]} 29...
Qa3 {[%clk 0:00:31.9]} 30. Rxc7 {[%clk 0:00:06]} 30... Nc4 {[%clk 0:00:27.2]}
31. Qc1 {[%clk 0:00:06.2]} 31... Qxc1 {[%clk 0:00:24.2]} 32. Bxc1 {[%clk
0:00:03.8]} 32... Nd6 {[%clk 0:00:19.3]} 33. Bg5 {[%clk 0:00:03.5]} 33... f6
{[%clk 0:00:17.2]} 34. Be3 {[%clk 0:00:04.2]} 34... Rb8 {[%clk 0:00:09.9]} 35.
Bf1 {[%clk 0:00:04.5]} 35... Rb2 {[%clk 0:00:09.2]} 36. Rc1 {[%clk 0:00:05.1]}
36... Bg4 {[%clk 0:00:08.9]} 37. Ne6 {[%clk 0:00:04.9]} 37... Bxe6 {[%clk
0:00:06.4]} 38. dxe6 {[%clk 0:00:05.8]} 38... Nxe4 {[%clk 0:00:06.1]} 39. e7
{[%clk 0:00:05]} 39... Re8 {[%clk 0:00:06.4]} 40. Rc8 {[%clk 0:00:05.7]} 40...
Rb8 {[%clk 0:00:04.2]} 41. Rxb8 {[%clk 0:00:05.7]} 41... Rxb8 {[%clk 0:00:04.3]}
42. Bb5 {[%clk 0:00:06.2]} 42... Nd6 {[%clk 0:00:02.9]} 43. Bd7 {[%clk 0:00:05]}
43... Kf7 {[%clk 0:00:02.6]} 44. Bxa7 {[%clk 0:00:04.8]} 44... Ra8 {[%clk
0:00:02.3]} 45. Bc5 {[%clk 0:00:04.9]} 45... Kxe7 {[%clk 0:00:02.7]} 46. Bh3
{[%clk 0:00:05.1]} 46... f5 {[%clk 0:00:01.7]} 47. Rd1 {[%clk 0:00:04.9]} 47...
Rd8 {[%clk 0:00:01.9]} 48. Bg2 {[%clk 0:00:05.8]} 48... Ke6 {[%clk 0:00:02.3]}
49. Bd5+ {[%clk 0:00:05.8]} 49... Ke7 {[%clk 0:00:02.3]} 50. a4 {[%clk
0:00:05.9]} 50... e4 {[%clk 0:00:02.7]} 51. a5 {[%clk 0:00:06.4]} 51... Be5
{[%clk 0:00:03.1]} 52. a6 {[%clk 0:00:06.8]} 52... Rb8 {[%clk 0:00:02.8]} 53. a7
{[%clk 0:00:07.2]} 53... Rc8 {[%clk 0:00:03.3]} 54. a8=Q {[%clk 0:00:07.7]}
54... Rxa8 {[%clk 0:00:03.6]} 55. Bxa8 {[%clk 0:00:08.6]} 55... e3 {[%clk
0:00:04.1]} 56. Bxd6+ {[%clk 0:00:09.2]} 56... Bxd6 {[%clk 0:00:03.6]} 57. fxe3
{[%clk 0:00:10.1]} 57... Bc5 {[%clk 0:00:03.5]} 58. Kf2 {[%clk 0:00:11]} 58...
g5 {[%clk 0:00:03.9]} 59. Bd5 {[%clk 0:00:11.6]} 59... f4 {[%clk 0:00:04.1]} 60.
gxf4 {[%clk 0:00:12.5]} 60... gxf4 {[%clk 0:00:05]} 61. Kf3 {[%clk 0:00:13.3]}
61... fxe3 {[%clk 0:00:05.4]} 62. Be4 {[%clk 0:00:14.2]} 62... Bb6 {[%clk
0:00:04.7]} 63. Rb1 {[%clk 0:00:14.6]} 63... Bd4 {[%clk 0:00:03.9]} 64. Bxh7
{[%clk 0:00:15.2]} 64... Ke6 {[%clk 0:00:03.6]} 65. Be4 {[%clk 0:00:16.1]} 65...
Ba7 {[%clk 0:00:02.8]} 66. Rg1 {[%clk 0:00:16.1]} 66... Kf7 {[%clk 0:00:02.5]}
67. Rg2 {[%clk 0:00:16.1]} 67... Bd4 {[%clk 0:00:02.7]} 68. h4 {[%clk
0:00:16.4]} 68... Bf6 {[%clk 0:00:01.9]} 69. h5 {[%clk 0:00:16.4]} 69... Bg7
{[%clk 0:00:02.1]} 70. Kxe3 {[%clk 0:00:16]} 70... Bh6+ {[%clk 0:00:02.6]} 71.
Kf3 {[%clk 0:00:16.5]} 71... Bc1 {[%clk 0:00:02.3]} 72. Rg6 {[%clk 0:00:15.7]}
72... Bd2 {[%clk 0:00:02.2]} 73. h6 {[%clk 0:00:16]} 73... Kf8 {[%clk
0:00:02.2]} 74. h7 {[%clk 0:00:16]} 74... Bc3 {[%clk 0:00:01.8]} 75. Rg8+ {[%clk
0:00:15.5]} 75... Kf7 {[%clk 0:00:02.2]} 76. h8=Q {[%clk 0:00:16.4]} 76... Bxh8
{[%clk 0:00:02.9]} 77. Rxh8 {[%clk 0:00:17.3]} 77... Ke6 {[%clk 0:00:03.8]} 78.
Rh5 {[%clk 0:00:17.8]} 78... Kd6 {[%clk 0:00:04]} 79. Rd5+ {[%clk 0:00:18.1]}
79... Ke7 {[%clk 0:00:04.9]} 80. Kf4 {[%clk 0:00:18.6]} 80... Ke6 {[%clk
0:00:05.8]} 81. Kg5 {[%clk 0:00:19]} 81... Ke7 {[%clk 0:00:06.2]} 82. Kf5 {[%clk
0:00:19.7]} 82... Ke8 {[%clk 0:00:06.5]} 83. Kf6 {[%clk 0:00:19.7]} 83... Kf8
{[%clk 0:00:06.2]} 84. Rd8# {[%clk 0:00:20.6]} 1-0